fUST/lending_fUST_20250614
["ID","MTS","AMOUNT","RATE_DAILY","PERIOD"]
[365750293,1749876641591,-152.216395,0.000238,7]
[365750294,1749876641600,-151.0,0.000238,7]
[365750295,1749876641609,-151.0,0.000238,7]
[365750296,1749876641618,-177.761198,0.000238,7]
[365750297,1749876641627,-177.761198,0.000238,7]
[365750298,1749876641636,-151.909552,0.000238,7]
[365750299,1749876641645,-151.0,0.000238,7]
[365750300,1749876641654,-151.0,0.000238,7]
[365750301,1749876641663,-177.761198,0.000238,7]
[365750302,1749876641672,-177.761198,0.000238,7]
[365750303,1749876641681,-151.0,0.000238,7]
[365750304,1749876641690,-151.0,0.000238,7]
[365750305,1749876641700,-4910.29,0.000238,7]
[365750306,1749876641709,-153.309391,0.000238,7]
[365750307,1749876641718,-153.309391,0.000238,7]
[365750308,1749876641727,-152.524667,0.000238,7]
[365750309,1749876641820,-151.0,0.000238,7]
[365750310,1749876641829,-151.0,0.000238,7]
[365750311,1749876641839,-151.0,0.000238,7]
[365750312,1749876641848,-199.694778,0.000238,7]
[365750313,1749876641857,-199.694778,0.000238,7]
[365750314,1749876641867,-151.0,0.000238,7]
[365750315,1749876641876,-151.0,0.000238,7]
[365750316,1749876641885,-151.0,0.000238,7]
[365750317,1749876641895,-151.0,0.000238,7]
[365750318,1749876641904,-232.574317,0.000238,7]
[365750319,1749876641914,-232.574317,0.000238,7]
[365750320,1749876641923,-151.0,0.000238,7]
[365750321,1749876641932,-151.0,0.000238,7]
[365750322,1749876641941,-151.0,0.000238,7]
[365750323,1749876641951,-161.069961,0.000238,7]
[365750324,1749876641960,-151.0,0.000238,7]
[365750325,1749876641970,-174.062093,0.000238,7]
[365750326,1749876641979,-152.619152,0.000238,7]
[365750327,1749876641989,-130912.87509138,0.000238,3]
[365750328,1749876641998,-153.451976,0.000238,7]
[365750329,1749876642007,-152.027995,0.000238,7]
[365750330,1749876642017,-151.0,0.000238,7]
[365750331,1749876642026,-151.0,0.000238,7]
[365750332,1749876642035,-151.0,0.000238,7]
[365750333,1749876642044,-297.76527942,0.000238,2]
[365750334,1749876642053,-72683.20977391,0.000238,7]
[365750335,1749876642191,-152.636,0.0002361,2]
[365750336,1749876642200,-151.0,0.0002371,7]
[365750337,1749876642209,-8173.8390479,0.000238,7]
[365750338,1749876642222,-487.9008143,0.000238,7]
[365750339,1749876642234,-36214.11036389,0.000238,7]
[365750340,1749876642243,-272.022604,0.000238,7]
[365750341,1749876642253,-272.022604,0.000238,7]
[365750342,1749876642265,-151.0,0.000238,7]
[365750343,1749876642275,-151.0,0.000238,7]
[365750344,1749876642284,-151.0,0.000238,7]
[365750345,1749876642293,-151.0,0.000238,7]
[365750346,1749876642303,-151.0,0.000238,7]
[365750347,1749876642312,-151.0,0.000238,7]
[365750348,1749876642321,-151.0,0.000238,7]
[365750349,1749876642331,-151.0,0.000238,7]
[365750350,1749876642340,-5589.449633,0.000238,2]
[365750351,1749876642349,-3332.4762082,0.000238,2]
[365750393,1749876643300,-864.11502845,0.0002119,2]
[365750395,1749876643312,-1134.00497155,0.0002119,2]
[365750397,1749876643322,-500.0,0.00022933,2]
[365750399,1749876643331,-371.95827414,0.00022933,2]
[365750401,1749876643341,-500.0,0.00022933,2]
[365750403,1749876643350,-500.0,0.00022933,2]
[365750405,1749876643360,-500.0,0.00022933,2]
[365750408,1749876643369,-633.48993125,0.00023096,3]
[365750412,1749876643381,-211.61796181,0.00023096,3]
[365750415,1749876643391,-1551.62743171,0.00023117,2]
[365750680,1749876646235,-500.0,0.00022933,2]
[365750682,1749876646244,-500.0,0.00022933,2]
[365750684,1749876646254,-500.0,0.00022933,2]
[365750686,1749876646263,-500.0,0.00022933,2]
[365750688,1749876646272,-199.52419145,0.00022933,2]
[365750690,1749876646282,-2444.61256829,0.00023117,2]
[365750692,1749876646292,-845.10789306,0.000232,7]
[365750694,1749876646301,-203.376092,0.0002378,7]
[365750696,1749876646311,-2256.9734248,0.000238,2]
[365750698,1749876646320,-5589.449633,0.000238,2]
[365750700,1749876646329,-5589.449633,0.000238,2]
[365750702,1749876646338,-5589.449633,0.000238,2]
[365750704,1749876646348,-5589.449633,0.000238,2]
[365750706,1749876646357,-160.88283,0.000238,7]
[365750708,1749876646366,-160.88283,0.000238,7]
[365750710,1749876646376,-160.88283,0.000238,7]
[365750712,1749876646385,-160.88283,0.000238,7]
[365750714,1749876646394,-160.88283,0.000238,7]
[365750716,1749876646403,-160.88283,0.000238,7]
[365750718,1749876646412,-160.88283,0.000238,7]
[365750720,1749876646421,-160.88283,0.000238,7]
[365750722,1749876646431,-151.0,0.000238,7]
[365750724,1749876646440,-151.0,0.000238,7]
[365750726,1749876646449,-151.0,0.000238,7]
[365750728,1749876646459,-151.0,0.000238,7]
[365750730,1749876646469,-151.0,0.000238,7]
[365750732,1749876646479,-151.0,0.000238,7]
[365750734,1749876646488,-151.0,0.000238,7]
[365750736,1749876646498,-151.0,0.000238,7]
[365750738,1749876646507,-394.768693,0.000238,7]
[365750740,1749876646516,-394.768693,0.000238,7]
[365750742,1749876646526,-151.0,0.000238,7]
[365750744,1749876646535,-151.490983,0.000238,7]
[365750746,1749876646544,-151.723537,0.000238,7]
[365750748,1749876646553,-151.0,0.000238,7]
[365750750,1749876646562,-155.060604,0.000238,7]
[365750752,1749876646571,-151.0,0.000238,7]
[365750754,1749876646580,-151.0,0.000238,7]
[365750756,1749876646589,-151.0,0.000238,7]
[365750757,1749876646598,-151.0,0.000238,7]
[365750760,1749876646608,-191.807704,0.000238,7]
[365750762,1749876646618,-191.807704,0.000238,7]
[365750763,1749876646627,-191.807704,0.000238,7]
[365750766,1749876646637,-191.807704,0.000238,7]
[365750768,1749876646646,-191.807704,0.000238,7]
[365750769,1749876646657,-191.807704,0.000238,7]
[365750771,1749876646666,-173.770762,0.000238,7]
[365750773,1749876646675,-157.859303,0.000238,7]
[365750775,1749876646684,-157.859303,0.000238,7]
[365750777,1749876646693,-157.859303,0.000238,7]
[365750779,1749876646702,-157.859303,0.000238,7]
[365750781,1749876646711,-157.859303,0.000238,7]
[365750783,1749876646721,-157.859303,0.000238,7]
[365750785,1749876646731,-157.859303,0.000238,7]
[365750787,1749876646740,-157.859303,0.000238,7]
[365750789,1749876646750,-173.770762,0.000238,7]
[365750791,1749876646759,-151.0,0.000238,7]
[365750793,1749876646768,-151.747234,0.000238,7]
[365750795,1749876646778,-153.045582,0.000238,7]
[365750797,1749876646788,-770.436479,0.000238,7]
[365750799,1749876646799,-770.436479,0.000238,7]
[365750801,1749876646809,-770.436479,0.000238,7]
[365750803,1749876646818,-770.436479,0.000238,7]
[365750805,1749876646826,-151.0,0.000238,7]
[365750807,1749876646835,-238.679718,0.000238,7]
[365750809,1749876646845,-770.436479,0.000238,7]
[365750811,1749876646855,-770.436479,0.000238,7]
[365750813,1749876646864,-770.436479,0.000238,7]
[365750815,1749876646874,-770.436479,0.000238,7]
[365750817,1749876646882,-157.585141,0.000238,5]
[365750819,1749876646891,-364.640798,0.000238,7]
[365750821,1749876646901,-151.0,0.000238,7]
[365750823,1749876646910,-364.640798,0.000238,7]
[365750825,1749876646919,-151.0,0.000238,7]
[365750827,1749876646928,-364.640798,0.000238,7]
[365750829,1749876646937,-151.0,0.000238,7]
[365750831,1749876646946,-364.640798,0.000238,7]
[365750833,1749876646961,-151.0,0.000238,7]
[365750835,1749876646970,-151.0,0.000238,7]
[365750837,1749876646979,-151.0,0.000238,7]
[365750839,1749876646988,-151.0,0.000238,7]
[365750841,1749876646997,-151.0,0.000238,7]
[365750843,1749876647006,-364.640798,0.000238,7]
[365750845,1749876647016,-364.640798,0.000238,7]
[365750847,1749876647026,-364.640798,0.000238,7]
[365750849,1749876647035,-364.640798,0.000238,7]
[365750851,1749876647044,-151.0,0.000238,7]
[365750853,1749876647053,-151.0,0.000238,7]
[365750855,1749876647062,-151.0,0.000238,7]
[365750857,1749876647072,-151.0,0.000238,7]
[365750859,1749876647081,-151.96539,0.000238,7]
[365750861,1749876647090,-635.850773,0.000238,7]
[365750863,1749876647099,-635.850773,0.000238,7]
[365750865,1749876647108,-635.850773,0.000238,7]
[365750867,1749876647118,-635.850773,0.000238,7]
[365750869,1749876647129,-635.850773,0.000238,7]
[365750871,1749876647138,-635.850773,0.000238,7]
[365750882,1749876647147,-153.304843,0.000238,7]
[365750884,1749876647244,-260.822629,0.000238,7]
[365750886,1749876647254,-260.822629,0.000238,7]
[365750888,1749876647266,-260.822629,0.000238,7]
[365750890,1749876647276,-260.822629,0.000238,7]
[365750892,1749876647286,-260.822629,0.000238,7]
[365750894,1749876647295,-260.822629,0.000238,7]
[365750896,1749876647304,-260.822629,0.000238,7]
[365750898,1749876647313,-260.822629,0.000238,7]
[365750900,1749876647322,-424.40141186,0.000238,3]
[365750902,1749876647331,-427.768058,0.000238,7]
[365750904,1749876647340,-427.768058,0.000238,7]
[365750906,1749876647349,-639.0,0.000238,2]
[365750908,1749876647359,-260.9593,0.000238,2]
[365750910,1749876647368,-260.9593,0.000238,2]
[365750912,1749876647377,-427.768058,0.000238,7]
[365750914,1749876647386,-427.768058,0.000238,7]
[365750916,1749876647395,-427.768058,0.000238,7]
[365750918,1749876647405,-427.768058,0.000238,7]
[365750920,1749876647414,-427.768058,0.000238,7]
[365750922,1749876647423,-427.768058,0.000238,7]
[365750924,1749876647432,-165.393352,0.000238,7]
[365750926,1749876647442,-165.393352,0.000238,7]
[365750928,1749876647451,-165.393352,0.000238,7]
[365750929,1749876647460,-165.393352,0.000238,7]
[365750930,1749876647469,-165.393352,0.000238,7]
[365750931,1749876647479,-165.393352,0.000238,7]
[365750932,1749876647488,-229.82479369,0.000238,3]
[365750933,1749876647498,-160.0,0.000238,3]
[365750934,1749876647507,-151.0,0.000238,7]
[365750935,1749876647517,-151.0,0.000238,7]
[365750936,1749876647527,-154.356405,0.000238,7]
[365750937,1749876647536,-835.41710878,0.000238,3]
[365750938,1749876647545,-205.836747,0.000238,7]
[365750939,1749876647555,-151.0,0.000238,7]
[365750940,1749876647564,-234.166409,0.000238,7]
[365750941,1749876647573,-151.0,0.000238,7]
[365750942,1749876647583,-151.0,0.000238,7]
[365750943,1749876647591,-151.0,0.000238,7]
[365750944,1749876647601,-151.0,0.000238,7]
[365750945,1749876647611,-719.7,0.00023803,6]
[365750946,1749876647627,-600.0,0.00023808,2]
[365750947,1749876647637,-385.7158362,0.00023809,4]
[365750948,1749876647647,-2694.91,0.00023809,4]
[365750949,1749876647656,-460.0,0.00023809,4]
[365750950,1749876647665,-460.0,0.00023809,4]
[365750951,1749876647675,-460.0,0.00023809,4]
[365750952,1749876647685,-490.1,0.00023809,4]
[365750953,1749876647694,-488.27,0.00023809,4]
[365750954,1749876647704,-3000.0,0.0002381,2]
[365750955,1749876647713,-593.95,0.0002381,4]
[365750956,1749876647723,-565.85,0.0002381,4]
[365750957,1749876647734,-3000.0,0.0002382,2]
[365750958,1749876647743,-460.0,0.00023822,2]
[365750959,1749876647752,-165.11664417,0.00023826,2]
[365750960,1749876647761,-3000.0,0.0002383,2]
[365750961,1749876647771,-3000.0,0.0002384,2]
[365750962,1749876647779,-3000.0,0.0002385,2]
[365750963,1749876647789,-3000.0,0.0002386,2]
[365750964,1749876647798,-1847.6711044,0.00023866,10]
[365750965,1749876647807,-3000.0,0.0002387,2]
[365750966,1749876647817,-3000.0,0.0002388,2]
[365750967,1749876647826,-151.0,0.0002389,7]
[365750968,1749876647835,-3000.0,0.0002389,2]
[365750969,1749876647844,-151.0,0.0002389,7]
[365750970,1749876647853,-3000.0,0.000239,2]
[365750971,1749876647863,-151.0,0.000239,7]
[365750972,1749876647872,-530.33612205,0.000239,2]
[365750973,1749876647882,-2150.23096175,0.000239,2]
[365750974,1749876647891,-719.7,0.00023903,4]
[365750975,1749876647900,-3000.0,0.0002391,2]
[365750976,1749876647909,-3000.0,0.0002392,2]
[365750977,1749876647919,-156.442282,0.0002392,7]
[365750978,1749876647928,-177.761198,0.0002392,7]
[365750979,1749876647937,-151.0,0.0002392,7]
[365750980,1749876647946,-177.761198,0.0002392,7]
[365750981,1749876647955,-154.63582,0.0002392,7]
[365750982,1749876647964,-13637.89578018,0.00023925,2]
[365750983,1749876647974,-3000.0,0.0002393,2]
[365750984,1749876647983,-3000.0,0.0002394,2]
[365750985,1749876647992,-153.309391,0.0002394,7]
[365750986,1749876648001,-153.309391,0.0002394,7]
[365750987,1749876648010,-151.0,0.0002394,7]
[365750988,1749876648020,-151.0,0.0002394,7]
[365750989,1749876648029,-176.614148,0.0002394,7]
[365750990,1749876648038,-199.694778,0.0002394,7]
[365750991,1749876648047,-199.694778,0.0002394,7]
[365750992,1749876648057,-151.0,0.0002394,7]
[365750993,1749876648066,-151.0,0.0002394,7]
[365750994,1749876648075,-500.0,0.0002394,2]
[365750995,1749876648083,-500.0,0.0002394,2]
[365750996,1749876648092,-626.78445006,0.0002394,2]
[365750997,1749876648102,-3000.0,0.0002395,2]
[365750998,1749876648111,-3000.0,0.0002396,2]
[365750999,1749876648120,-151.0,0.0002396,7]
[365751000,1749876648129,-157.176139,0.0002396,7]
[365751001,1749876648138,-232.574317,0.0002396,7]
[365751002,1749876648148,-232.574317,0.0002396,7]
[365751003,1749876648157,-200.424954,0.0002396,7]
[365751004,1749876648166,-151.0,0.0002396,7]
[365751005,1749876648176,-151.0,0.0002396,7]
[365751006,1749876648187,-151.381826,0.0002396,7]
[365751007,1749876648196,-174.062093,0.0002396,7]
[365751008,1749876648206,-237.13056107,0.0002396,7]
[365751009,1749876648215,-165.393352,0.0002396,7]
[365751010,1749876648224,-165.393352,0.0002396,7]
[365751011,1749876648234,-151.0,0.0002396,7]
[365751012,1749876648243,-1847.6711044,0.00023969,10]
[365751013,1749876648253,-3000.0,0.0002397,2]
[365751014,1749876648263,-151.0,0.0002397,7]
[365751015,1749876648273,-151.0,0.0002397,7]
[365751016,1749876648282,-260.822629,0.0002397,7]
[365751017,1749876648292,-260.822629,0.0002397,7]
[365751018,1749876648301,-427.768058,0.0002397,7]
[365751019,1749876648311,-427.768058,0.0002397,7]
[365751020,1749876648320,-3000.0,0.0002398,2]
[365751021,1749876648330,-152.211299,0.0002398,7]
[365751022,1749876648343,-272.022604,0.0002398,7]
[365751023,1749876648354,-272.022604,0.0002398,7]
[365751024,1749876648363,-151.0,0.0002398,7]
[365751025,1749876648372,-151.0,0.0002398,7]
[365751026,1749876648381,-394.768693,0.0002398,7]
[365751027,1749876648391,-394.768693,0.0002398,7]
[365751028,1749876648400,-151.0,0.0002398,7]
[365751029,1749876648410,-173.770762,0.0002398,7]
[365751030,1749876648420,-157.859303,0.0002398,7]
[365751031,1749876648429,-157.859303,0.0002398,7]
[365751032,1749876648438,-173.770762,0.0002398,7]
[365751033,1749876648448,-770.436479,0.0002398,7]
[365751034,1749876648458,-770.436479,0.0002398,7]
[365751035,1749876648467,-151.0,0.00023985,7]
[365751036,1749876648478,-151.0,0.00023985,7]
[365751037,1749876648493,-3000.0,0.0002399,2]
[365751038,1749876648503,-289.67314095,0.0002399,3]
[365751039,1749876648512,-206.0,0.0002399,2]
[365751040,1749876648522,-12500.0,0.0002399,3]
[365751041,1749876648531,-4538.86457504,0.0002399,3]
[365751042,1749876648540,-528.18,0.0002399,3]
[365751043,1749876648549,-10010.03909984,0.00024,2]
[365751044,1749876648559,-493.19616532,0.00024,60]
[365751045,1749876648568,-30013.0,0.00024,2]
[365751046,1749876648577,-111849.5,0.00024,2]
[365751047,1749876648587,-21505.71113454,0.00024,2]
[365751048,1749876648597,-32368.09241315,0.00024,42]
[365751061,1749876648743,-1.17950486,0.00024,42]
[365751063,1749876648755,-12997.34316015,0.00024,42]
[365751119,1749876661104,-213.65266235,0.00021343,4]
[365751121,1749876774118,-5342.0,0.00020339,2]
[365751122,1749876837553,3366.73904762,0.0002,2]
[365751123,1749876837577,1633.26095238,0.0002,2]
[365751124,1749876841320,-160.46656355,0.00020239,3]
[365751125,1749876841342,-1246.0982431,0.00020304,2]
[365751126,1749876841364,-4658.0,0.00020339,2]
[365751127,1749876841387,-300.0,0.00020376,2]
[365751128,1749876841408,-11492.43519335,0.00020377,2]
[365751130,1749876852970,5000.0,0.0002,2]
[365751131,1749876869353,5000.0,0.0002,2]
[365751132,1749876885748,5000.0,0.0002,2]
[365751133,1749876887530,6566.78344762,0.0002,2]
[365751134,1749876887553,18433.21655238,0.0002,2]
[365751135,1749876901030,4766.82784762,0.0002,2]
[365751136,1749876901053,233.17215238,0.0002,2]
[365751137,1749876904954,-218.56,0.00020276,2]
[365751138,1749876904978,-487.44,0.00020303,2]
[365751139,1749876916343,5000.0,0.0002,2]
[365751140,1749876931629,5000.0,0.0002,2]
[365751141,1749876946871,5000.0,0.0002,2]
[365751142,1749876962286,5000.0,0.0002,2]
[365751143,1749876978196,2966.87224762,0.0002,2]
[365751144,1749876978220,2033.12775238,0.0002,2]
[365751145,1749876993501,5000.0,0.0002,2]
[365751146,1749877009276,5000.0,0.0002,2]
[365751148,1749877025048,5000.0,0.0002,2]
[365751149,1749877040243,5000.0,0.0002,2]
[365751151,1749877055775,1166.91664762,0.0002,2]
[365751152,1749877055798,3833.08335238,0.0002,2]
[365751153,1749877071476,5000.0,0.0002,2]
[365751154,1749877086709,5000.0,0.0002,2]
[365751155,1749877102642,5000.0,0.0002,2]
[365751156,1749877118485,4366.96104762,0.0002,2]
[365751157,1749877118510,633.03895238,0.0002,2]
[365751158,1749877135261,5000.0,0.0002,2]
[365751159,1749877150560,5000.0,0.0002,2]
[365751160,1749877165912,5000.0,0.0002,2]
[365751161,1749877179034,179.92802879,0.00019443,2]
[365751162,1749877182116,5000.0,0.0002,2]
[365751163,1749877198509,2387.07741883,0.0002,2]
[365751164,1749877198534,2612.92258117,0.0002,2]
[365751165,1749877213852,5000.0,0.0002,2]
[365751167,1749877229715,5000.0,0.0002,2]
[365751169,1749877244933,5000.0,0.0002,2]
[365751171,1749877255772,5587.12181883,0.0002,30]
[365751172,1749877255795,4412.87818117,0.0002,30]
[365751173,1749877261385,5000.0,0.0002,2]
[365751174,1749877273498,10000.0,0.0002,30]
[365751175,1749877277938,3787.16621883,0.0002,2]
[365751176,1749877277962,1212.83378117,0.0002,2]
[365751177,1749877284012,5585.64,0.0002,90]
[365751178,1749877293807,5000.0,0.0002,2]
[365751179,1749877304178,10000.0,0.0002,30]
[365751180,1749877310215,5000.0,0.0002,2]
[365751181,1749877312463,1987.21061883,0.0002,30]
[365751182,1749877312486,8012.78938117,0.0002,30]
[365751183,1749877325445,5000.0,0.0002,2]
[365751184,1749877333520,10000.0,0.0002,30]
[365751185,1749877341245,187.25501883,0.0002,2]
[365751186,1749877341268,4812.74498117,0.0002,2]
[365751187,1749877357105,5000.0,0.0002,2]
[365751188,1749877372848,5000.0,0.0002,2]
[365751189,1749877388647,5000.0,0.0002,2]
[365751191,1749877396215,163.587938,0.00013699,2]
[365751192,1749877404264,3223.71148083,0.0002,2]
[365751193,1749877404288,1776.28851917,0.0002,2]
[365751194,1749877420063,5000.0,0.0002,2]
[365751195,1749877432010,155.0,0.0002,2]
[365751196,1749877437238,5000.0,0.0002,2]
[365751198,1749877452670,5000.0,0.0002,2]
[365751199,1749877467890,5000.0,0.0002,2]
[365751200,1749877483688,1268.75588083,0.0002,2]
[365751201,1749877483712,3731.24411917,0.0002,2]
[365751202,1749877500092,5000.0,0.0002,2]
[365751204,1749877515290,5000.0,0.0002,2]
[365751206,1749877530576,5000.0,0.0002,2]
[365751207,1749877535668,-195.7999762,0.00020202,2]
[365751208,1749877535692,-169.65996769,0.00020203,2]
[365751209,1749877535718,-1200.0,0.00020301,2]
[365751210,1749877535743,-300.0,0.00020302,2]
[365751211,1749877535767,-300.0,0.00020302,2]
[365751212,1749877535791,-300.0,0.00020302,2]
[365751213,1749877535815,-300.0,0.00020302,2]
[365751214,1749877535840,-648.4253316,0.00020303,2]
[365751215,1749877536063,-500.0,0.00020303,2]
[365751216,1749877536085,-500.0,0.00020303,2]
[365751217,1749877536105,-500.0,0.00020303,2]
[365751218,1749877536125,-86.11472451,0.00020374,2]
[365751219,1749877536170,-213.88527549,0.00020374,2]
[365751220,1749877536191,-300.0,0.00020376,2]
[365751221,1749877536212,-803.47236985,0.00020377,2]
[365751222,1749877536231,-195.76090948,0.00021,2]
[365751223,1749877536251,-350.84930844,0.00021,2]
[365751225,1749877552501,308.42314935,0.0001995,2]
[365751226,1749877588953,1164.89453805,0.000189,2]
[365751227,1749877591151,163.0,0.0002,2]
[365751228,1749877592994,163.0,0.0002,2]
[365751229,1749877594244,163.0,0.0002,2]
[365751230,1749877652085,-198.3949337,0.00020279,2]
[365751231,1749877652108,-1366.43429678,0.0002079,2]
[365751232,1749877653086,-3633.56570322,0.0002079,2]
[365751233,1749877653107,-300.0,0.00020999,2]
[365751234,1749877653127,-300.0,0.00020999,2]
[365751235,1749877653147,-3105.56540478,0.00021,2]
[365751238,1749877748115,-573.863664,0.00020269,2]
[365751239,1749877748136,-300.0,0.00020273,2]
[365751240,1749877748157,-28633.4473596,0.00020274,2]
[365751241,1749877748179,-5000.0,0.0002079,2]
[365751242,1749877748200,-297.76527942,0.00021,2]
[365751243,1749877748222,-460.0,0.00021095,4]
[365751244,1749877748248,-460.0,0.00021095,4]
[365751245,1749877748282,-460.0,0.00021095,4]
[365751246,1749877748320,-460.0,0.00021095,4]
[365751247,1749877748342,-460.0,0.00021095,4]
[365751248,1749877748362,-457.65133276,0.00021095,4]
[365751249,1749877748382,-460.0,0.00021095,4]
[365751250,1749877748403,-460.0,0.00021095,4]
[365751251,1749877748422,-589.38521252,0.00021095,4]
[365751252,1749877748459,-460.0,0.00021095,4]
[365751253,1749877748495,-1885.72,0.00021095,4]
[365751254,1749877748518,-460.0,0.00021095,4]
[365751255,1749877748538,-195.76090948,0.00021188,2]
[365751256,1749877748559,-1461.99761008,0.0002124,2]
[365751257,1749877748580,-350.89,0.0002132,10]
[365751258,1749877748604,-292.41,0.0002132,10]
[365751259,1749877748637,-243.67,0.0002132,10]
[365751260,1749877748662,-12915.60999134,0.00021328,2]
[365751261,1749877748685,-500.0,0.00021329,2]
[365751262,1749877748711,-500.0,0.00021329,2]
[365751263,1749877748738,-500.0,0.00021329,2]
[365751264,1749877748761,-500.0,0.00021329,2]
[365751265,1749877748782,-500.0,0.00021329,2]
[365751266,1749877748802,-240.0,0.00021329,2]
[365751267,1749877748822,-500.0,0.00021329,2]
[365751268,1749877748842,-462.57748027,0.0002133,4]
[365751269,1749877748865,-460.0,0.0002133,4]
[365751270,1749877748887,-460.0,0.0002133,4]
[365751271,1749877748907,-460.0,0.0002133,4]
[365751272,1749877748928,-460.0,0.0002133,4]
[365751273,1749877748948,-460.0,0.0002133,4]
[365751274,1749877748969,-460.0,0.0002133,4]
[365751275,1749877748992,-449.35207486,0.0002133,4]
[365751276,1749877749013,-460.0,0.0002133,4]
[365751277,1749877749036,-460.0,0.0002133,4]
[365751278,1749877749058,-460.0,0.0002133,4]
[365751279,1749877749079,-460.0,0.0002133,4]
[365751280,1749877749102,-460.0,0.0002133,4]
[365751281,1749877749124,-460.0,0.0002133,4]
[365751282,1749877749144,-469.27850043,0.0002133,4]
[365751283,1749877749165,-460.0,0.0002133,4]
[365751284,1749877749188,-460.0,0.0002133,4]
[365751285,1749877749209,-466.06284557,0.0002133,4]
[365751286,1749877749230,-446.89196218,0.0002133,4]
[365751287,1749877749252,-489.24496036,0.0002133,4]
[365751288,1749877749273,-460.0,0.0002133,4]
[365751289,1749877749295,-460.0,0.0002133,4]
[365751290,1749877749316,-461.8321999,0.0002133,4]
[365751291,1749877749337,-460.0,0.0002133,4]
[365751292,1749877749358,-460.0,0.0002133,4]
[365751293,1749877749379,-452.23578306,0.0002133,4]
[365751294,1749877749402,-460.0,0.0002133,4]
[365751295,1749877749424,-460.0,0.0002133,4]
[365751296,1749877749444,-467.38585449,0.0002133,4]
[365751297,1749877749464,-467.28125792,0.0002133,4]
[365751298,1749877749487,-500.0,0.0002133,4]
[365751299,1749877749514,-500.0,0.0002133,4]
[365751300,1749877749536,-473.06769997,0.0002133,4]
[365751301,1749877749559,-468.68265508,0.0002133,4]
[365751302,1749877749580,-460.0,0.0002133,4]
[365751303,1749877749600,-448.95958219,0.0002133,4]
[365751304,1749877749624,-466.5423322,0.0002133,4]
[365751305,1749877749645,-448.50533767,0.0002133,4]
[365751306,1749877749665,-457.85125282,0.0002133,4]
[365751307,1749877749686,-438.45434064,0.0002133,4]
[365751308,1749877749709,-460.0,0.0002133,4]
[365751309,1749877749730,-488.57838348,0.0002133,4]
[365751310,1749877749752,-460.0,0.0002133,4]
[365751311,1749877749773,-460.0,0.0002133,4]
[365751312,1749877749795,-460.0,0.0002133,4]
[365751313,1749877749817,-460.0,0.0002133,4]
[365751314,1749877749838,-460.0,0.0002133,4]
[365751315,1749877749858,-460.0,0.0002133,4]
[365751316,1749877749879,-460.0,0.0002133,4]
[365751317,1749877749900,-460.0,0.0002133,4]
[365751318,1749877749921,-460.0,0.0002133,4]
[365751319,1749877749942,-460.0,0.0002133,4]
[365751320,1749877749964,-460.0,0.0002133,4]